Cogmind - Beta 15 @@@ ROGUE MODE // 2025.10.15 @ 11:09:25 Player: shapeshifter Result: Destroyed by FS-TW0(R) with Subdweller Machine Gun Performance ------------- Evolutions (0) 0 Regions Visited (2) 400 Robots Destroyed (19) 95 Value Destroyed (527) 527 Prototype IDs (0) 0 Alien Tech Used (0) 0 Bonus (0) 0 TOTAL SCORE: 1022 Bonus ------- None Cogmind --------- Core Integrity 0/250 Matter 279/300 Energy 250/250 System Corruption 0% Temperature Cool (0) Movement Treading (160) Location -10/Subcaves Parts ------- > --- POWER (1) -------- Ion Engine > --- PROPULSION (2) --- Improved Treads Improved Treads > --- UTILITY (2) ------ Large Storage Unit Light Armor Plating > --- WEAPON (2) ------- Battle Rifle Barrage Gun > --- INVENTORY (15) --- Improved Treads Improved Treads Subdweller Monowheel Subdweller Monowheel Disposable Heat Sink High-capacity Matter Pod (117) Light Armor Plating Makeshift System Shield Subdweller Beam Cannon Battle Rifle Battle Cannon Peak State ------------ > --- POWER ------------ Ion Engine > --- PROPULSION ------- Improved Treads Improved Treads > --- UTILITY ---------- Large Storage Unit Light Armor Plating > --- WEAPON ----------- Battle Rifle Barrage Gun > --- INVENTORY -------- Improved Treads Improved Treads Subdweller Monowheel Disposable Heat Sink High-capacity Matter Pod Light Armor Plating Makeshift System Shield Subdweller Beam Cannon Battle Rifle Battle Cannon [Rating: 14] Favorites ----------- Power Ion Engine Engine Ion Engine Propulsion Improved Treads Treads Improved Treads Utility Small Storage Unit Device Structural Scanner Storage Small Storage Unit Protection Light Armor Plating Weapon Light Cannon Energy Gun Small Laser Ballistic Gun Battle Rifle Ballistic Cannon Light Cannon Build | -11 -10 -10 ------- Run | Yrd Mat Sub Slots Evolved . | . . . Power . | . . . Propulsion . | . . . Utility . | . . . Weapon . | . . . Parts Attached 20 | 6 9 5 Power 2 | 1 1 . Engine 2 | 1 1 . Core . | . . . Reactor . | . . . Propulsion 6 | 2 4 . Treads 6 | 2 4 . Leg . | . . . Wheel . | . . . Hover . | . . . Flight . | . . . Utility 5 | 1 2 2 Device 1 | . 1 . Storage 2 | 1 . 1 Processor . | . . . Hackware . | . . . Protection 2 | . 1 1 Artifact . | . . . Weapon 7 | 2 2 3 Energy Gun 1 | 1 . . Energy Cannon . | . . . Ballistic Gun 4 | 1 . 3 Ballistic Cannon 2 | . 2 . Launcher . | . . . Special Weapon . | . . . Impact Weapon . | . . . Slashing Weapon . | . . . Piercing Weapon . | . . . Special Melee Weapon . | . . . Unidentified Prototypes . | . . . Parts Lost 3 | . 2 1 Power 1 | . 1 . Propulsion 1 | . 1 . Utility 1 | . . 1 Weapon . | . . . Highest Loss Streak 2 | . 2 1 To Critical Strikes . | . . . Average Backups 7 | 2 6 8 Power . | . . . Propulsion 1 | 1 1 2 Utility 3 | . 3 3 Weapon 1 | . 1 2 Tool/Special . | . . . Unused Backups 22 | . 9 13 Power 2 | . 2 . Propulsion 6 | . 2 4 Utility 9 | . 4 5 Weapon 5 | . 1 4 Tool/Special . | . . . Average Slot Usage (%) 97 | . 94 99 Engine 13 | . 13 14 Treads 27 | . 25 28 Device 1 | . 2 . Storage 14 | . 14 14 Protection 11 | . 8 13 Energy Gun 3 | . 6 . Ballistic Gun 10 | . 6 12 Ballistic Cannon 14 | . 14 14 Peak Build Rating 14 | 6 10 14 Average Rating 9 | 4 7 11 On Entrance 5 | . 6 10 Naked Turns . | . . . Heaviest Build 33 | 12 19 33 Greatest Support 46 | 40 46 46 Greatest Overweight (x) . | . . . Average Overweight (x) . | . . . Largest Inventory Capacity 15 | 8 8 15 Average Capacity 8 | 7 8 8 Most Carried 11 | 5 8 11 Average Carried 7 | 3 6 8 Final Capacity 15 | 8 8 15 Final Carried 11 | 4 8 11 Class Distribution -------------------- 100% | Mutant Dominant Class ---------------- Mutant | -10/Materials Mutant | -10/Subcaves Resources | -11 -10 -10 ----------- Run | Yrd Mat Sub Matter Collected 867 | 233 212 422 Remotely . | . . . Salvage Created 637 | . 464 173 Parts 38 | . 29 9 Haulers Intercepted 2 | . 2 . Recyclers Shooed . | . . . Parts Field Recycled . | . . . Retrieved Matter . | . . . Parts Self-Destructed 7 | . . 7 Prevented . | . . . Kills | -11 -10 -10 ------- Run | Yrd Mat Sub Combat Hostiles Destroyed 14 | . 9 5 Guns 11 | . 9 2 Cannons 3 | . . 3 Classes Destroyed 7 | . 5 2 Hauler 2 | . 2 . Operator 1 | . 1 . Watcher 2 | . 2 . Swarmer 3 | . 3 . Grunt 6 | . 6 . Sentry 1 | . . 1 Subdweller 4 | . . 4 Best Kill Streak 4 | . 4 2 Combat Bots Only 3 | . 3 2 Max Kills in Single Turn 1 | . 1 1 Gunslinging . | . . . Exploded . | . . . Melee . | . . . Uniques/NPCs Destroyed . | . . . Combat | -11 -10 -10 -------- Run | Yrd Mat Sub Hostile Shots Fired 105 | . 72 33 Missed 27 | . 20 7 Hits 78 | . 52 26 Projectile 78 | . 52 26 Critical Strikes 1 | . . 1 Damage Taken 1216 | . 616 600 Core 263 | . 85 178 Absorbed by Shields . | . . . Core Remaining (%) 100 | 100 . . Volleys Fired 92 | . 52 40 Largest 2 | . 2 2 Hottest 60 | . 60 60 Shots Fired 184 | . 104 80 Gun 124 | . 96 28 Cannon 60 | . 8 52 Launcher . | . . . Special . | . . . Kinetic 136 | . 56 80 Thermal 48 | . 48 . Explosive . | . . . Electromagnetic . | . . . Robot Hit Streak 22 | . 9 22 Robot Miss Streak 3 | . 3 1 Penetration Max . | . . . Secondary Targets 1 | . . 1 Max Gunslinging Chain 1 | . . 1 Shots Hit Robots 111 | . 67 44 Core Hits 40 | . 28 12 Critical Kills . | . . . Critical Parts Destroyed 2 | . 2 . Critical Strikes 3 | . 2 1 Destroy 2 | . 2 . Blast 1 | . . 1 Melee Attacks . | . . . Impact . | . . . Slashing . | . . . Piercing . | . . . Sneak Attacks . | . . . Combat Hostiles . | . . . Follow-up Attacks . | . . . Damage Inflicted 1450 | . 701 749 Guns 1034 | . 629 405 Cannons 416 | . 72 344 Explosions . | . . . Melee . | . . . Ramming . | . . . Kinetic 1049 | . 300 749 Thermal 401 | . 401 . Explosive . | . . . Electromagnetic . | . . . Impact . | . . . Slashing . | . . . Piercing . | . . . Highest Corruption . | . . . Average Corruption . | . . . Corruption Purged . | . . . Corruption Blocked . | . . . Overload Shots . | . . . Overflow Damage . | . . . Projectiles . | . . . Explosions . | . . . Melee . | . . . Knockbacks . | . . . Impact . | . . . Kinetic . | . . . Secondary . | . . . Self-Inflicted Damage . | . . . Shots . | . . . Rammed . | . . . Targets Rammed . | . . . Kicked . | . . . Crushed . | . . . Highest Temperature 157 | . 157 . Average Temperature 47 | . 47 . Received Heat Transfer 468 | . 318 150 Siege Activations . | . . . Martial Activations . | . . . Shielding Activations . | . . . Robots Disrupted . | . . . Combat Hostiles . | . . . Robots Corrupted . | . . . Combat Hostiles . | . . . Parts Fried . | . . . Impact Corruptions . | . . . Robots Melted . | . . . Combat Hostiles . | . . . Parts Melted 1 | . 1 . Heat Transferred 900 | . 900 . Parts Sabotaged . | . . . Parts Stolen . | . . . Parts Stripped . | . . . Power Chain Reactions . | . . . Alert | -11 -10 -10 ------- Run | Yrd Mat Sub Maximum Alert Level . | . . . Low Security (%) 100 | 100 100 . Level 1 . | . . . Level 2 . | . . . Level 3 . | . . . Level 4 . | . . . Level 5 . | . . . High Security . | . . . Max Security . | . . . Peak Influence 157 | . 157 . Initial . | . . . Average 43 | . 46 . Influence Increases 415 | . 395 20 Destroy 0b10 Robot/C 200 | . 180 20 Destroy 0b10 Robot/NC 25 | . 25 . Destroy Leader 68 | . 68 . Successful Hack 47 | . 47 . Select Force Hacks 60 | . 60 . Disable Machine 15 | . 15 . Influence Decreases 415 | . 395 20 Time Decay 395 | . 375 20 Lost Part 20 | . 20 . Squads Dispatched 3 | . 3 . Investigation 2 | . 2 . Extermination . | . . . Reinforcement 1 | . 1 . Assault . | . . . Garrison . | . . . Intercept . | . . . Searches Triggered . | . . . Construction Impeded . | . . . Haulers Reinforced . | . . . Active Scanning Responses . | . . . Cargo Convoy Interrupts . | . . . Stealth | -11 -10 -10 --------- Run | Yrd Mat Sub Distress Signals 2 | . 2 . Communications Jammed . | . . . Distress Signals . | . . . Times Spotted 24 | . 17 7 Peak Tracking Total 5 | . 5 2 Tactical Retreats . | . . . Traps | -11 -10 -10 ------- Run | Yrd Mat Sub Traps Triggered . | . . . Indirectly . | . . . Trap Hack Attempts . | . . . Triggered . | . . . Disarmed . | . . . Reprogrammed . | . . . Reused . | . . . Traps Extracted . | . . . Installed 1 | . . 1 Triggered . | . . . Machines | -11 -10 -10 ---------- Run | Yrd Mat Sub Machines Disabled 1 | . 1 . Max in Single Turn 1 | . 1 . Machines Repaired . | . . . Machines Dismantled . | . . . Machines Sabotaged . | . . . Overloaded Fab Kills . | . . . Hacking | -11 -10 -10 --------- Run | Yrd Mat Sub Machines Accessed 8 | . 8 . Terminals 6 | . 6 . Fabricators . | . . . Repair Stations . | . . . Recycling Units 2 | . 2 . Scanalyzers . | . . . Garrison Access . | . . . Total Hacks 32 | . 32 . Successful 19 | . 19 . Failed 13 | . 13 . Catastrophic 1 | . 1 . Database Lockouts . | . . . Manual 28 | . 28 . Terminals 25 | . 25 . Fabricators . | . . . Repair Stations . | . . . Recycling Units 7 | . 7 . Scanalyzers . | . . . Garrison Access . | . . . Terminal Hacks 5 | . 5 . Robot Analysis 1 | . 1 . Branch Access Points 2 | . 2 . Zone Layout 2 | . 2 . Fabricator Hacks . | . . . Repair Station Hacks . | . . . Recycling Unit Hacks 2 | . 2 . Retrieve Components 2 | . 2 . Scanalyzer . | . . . Garrison Access Hacks . | . . . Unauthorized Hacks 12 | . 12 . Terminals 10 | . 10 . Botnet 5 | . 5 . Skim 5 | . 5 . Fabricators . | . . . Repair Stations . | . . . Recycling Units 2 | . 2 . Tunnel 2 | . 2 . Scanalyzers . | . . . Garrison Access . | . . . Data Cores Recovered . | . . . Used . | . . . Hacking Detections 7 | . 7 . Full Trace Events . | . . . Feedback Events . | . . . Feedback Blocked . | . . . Robot Schematics Acquired . | . . . Robots Built . | . . . Authchips . | . . . Time . | . . . Total Robot Build Rating . | . . . Part Schematics Acquired . | . . . Parts Built . | . . . Authchips . | . . . Time . | . . . Total Part Build Rating . | . . . Parts Repaired . | . . . Time . | . . . Parts Recycled . | . . . Recycled Matter . | . . . Retrieved Matter . | . . . Retrieved Components 3 | . 3 . Parts Scanalyzed . | . . . Part Schematics Acquired . | . . . Parts Damaged . | . . . Bothacking | -11 -10 -10 ------------ Run | Yrd Mat Sub Used RIF Installer . | . . . Robots Hacked . | . . . Non-combat . | . . . Combat . | . . . Robot Hacks Applied . | . . . Relay Couplers Released . | . . . Fabnet Peak Effective % . | . . . Robots Rewired . | . . . Allies Hacked . | . . . Hacks Repelled . | . . . Allies | -11 -10 -10 -------- Run | Yrd Mat Sub Total Allies . | . . . Largest Group . | . . . Highest-Rated Group . | . . . Highest-Rated Ally . | . . . Total Orders . | . . . Ally Attacks . | . . . Total Damage . | . . . Kills . | . . . Allies Corrupted . | . . . Allies Melted . | . . . Intel | -11 -10 -10 ------- Run | Yrd Mat Sub Active Infowar (turns) 278 | . 278 . Structural 278 | . 278 . Robot Analysis Total 1 | . 1 . Derelict Logs Recovered . | . . . Drone Launches . | . . . Drone Recoveries . | . . . Exploration | -11 -10 -10 ------------- Run | Yrd Mat Sub Turns Passed 3089 | 86 1347 1656 Spaces Moved 1715 | 57 709 949 Core 18 | 18 . . Treads 1697 | 39 709 949 Legs . | . . . Wheels . | . . . Hover . | . . . Flight . | . . . Fastest Speed 50 | 50 160 160 Average Speed 158 | 125 160 160 Slowest Speed 160 | 160 160 160 Overloaded Moves . | . . . Propulsion Burnouts . | . . . Robots Hopped . | . . . Potential Cave-ins . | . . . Cave-ins Triggered . | . . . Exploration Rate (%) 44 | 4 80 50 Regions Visited 2 Branch Regions 1 Pre-discovered Areas 3 | . 2 1 Known Exits Taken 1 | . 1 . Unknown Exits Taken 1 | 1 . . Scrap Searched 4 | . . 4 Spaces Dug 5 | . . 5 Terrain Destroyed 5 | . . 5 Melee . | . . . Projectile 5 | . . 5 AOE . | . . . Terrain Rammed . | . . . Walls Destroyed . | . . . Machines Disabled . | . . . Actions | -11 -10 -10 --------- Run | Yrd Mat Sub Total 1915 | 72 832 1011 Wait 33 | . 32 1 Move 1713 | 56 708 949 Hop . | . . . Pick Up 34 | 10 16 8 Fast Attach 6 | . 4 2 Attach 9 | 6 2 1 Detach . | . . . Swap 5 | . 3 2 Drop 22 | . 15 7 Fire 92 | . 52 40 Melee . | . . . Ram . | . . . Kick . | . . . Crush . | . . . Escape Stasis . | . . . Rewire . | . . . Trap 1 | . . 1 Miscellaneous . | . . . Route ------- -11/Scrapyard -10/Materials (discovered 5 exits: *Mat x3 / Min / *Sub) -10/Subcaves History --------- Turn | Location | Event 10 | -11/Scrapyard | Discovered new exit (range 16) 87 | -11/Scrapyard | Entered Materials 287 | -10/Materials | Discovered new exit (range 11) 316 | -10/Materials | Build established: Mutant 471 | -10/Materials | Discovered new exit (range 18) 471 | -10/Materials | Identified exit to Mines 948 | -10/Materials | Discovered new exit (range 4) 1148 | -10/Materials | Identified exit to Subcaves 1148 | -10/Materials | Learned location of 1 exit from Materials 1224 | -10/Materials | Identified exit to Materials 1292 | -10/Materials | Learned 2 Mines zone layouts 1352 | -10/Materials | Learned 4 Subcaves zone layouts 1434 | -10/Materials | Entered Subcaves 1502 | -10/Subcaves | Learned location of Zion (-6) 1502 | -10/Subcaves | Met a Zionite searching for "candidates" 2180 | -10/Subcaves | Ambushed by Subdweller buried in earth 2197 | -10/Subcaves | Core integrity fell below 50% 2390 | -10/Subcaves | Shifting Twisted Machinery released Sub. Power Source 2392 | -10/Subcaves | Shifting Twisted Machinery released Barrage Gun 3013 | -10/Subcaves | Core integrity fell below 20% 3090 | -10/Subcaves | Destroyed by FS-TW0(R) with Subdweller Machine Gun Last Messages --------------- 02405_ Dropped Battle Rifle. 02407_ Dropped Lgt. Cannon. 02407_ Acquired Battle Rifle. 02496_ Acquired 16 matter. 02509_ Acquired 15 matter. 03015_ CI-PZZ(R) destroyed. 03015_ Switching to secondary target: 0S-OTK(R). 03017_ Lgt. Armor Plating destroyed. 03022_ 0S-OTK(R) affixes Scrap Shield Fragment to Scrap Shield. 03024_ 0S-OTK(R) destroyed. 03027_ Acquired 40 matter. 03030_ Acquired Lrg. Storage Unit. 03033_ Subatomizers dissect the Sub. Monowheel. 03033_ Dropped Sml. Storage Unit. 03035_ Acquired Disposable Heat Sink. 03038_ Acquired Sub. Monowheel. 03040_ Acquired Sub. Beam Cannon. 03041_ Acquired 54 matter. 03044_ Acquired Sub. Monowheel. 03048_ Subatomizers dissect the Sml. Storage Unit. Map ----- +----------------------------------------------------+ | ???????????????????????????????# ##????# | | ??????????????????????????????## ##???## | | ?????????????????????????????##" ##???### | | ?????????????????????????????#"" #???### | | ???????????????????????????"""## ##### | | ??????????????????????????? "??## ### | | ??????????????????????????? ????# #?# | | ????????????????????????????????#### ### | | ???????????????????????????????????## ##### | | ????????????????????????????????????# #???## | | ????????????????????????????????????# ##????## | | ???????????????????????????????????## #??????## | | ?????????????????????????????####### ##??????# | | ?????????????????????????????# #?????## | | ?????????????????????????????# #?????# | | ????????????????????????????## #?????# | | ????????????# ?????????????## ##?????# | | ????????????## ??????????## ;# ##??????## | | ???????????? ??????#### ## ###??????# | | ???????????# ???## ##### ##?????## | | ???????????# ### #???# ##?????# | | ????????????# ##### ##????# | | ????????????????# ###??# | | ??????????? ## # #### #### | | ????????????? ##??### # #??## | | ????????????????????# R @ ###???## ## | | ???????????????????# ### #?##### #### | | ???????????????????## ??######&[ ##??# | | ??????????????????? ???# &! ######???## | | ?????????????????? ???# "#????????## | | ???????????????? ????## ##????????## | | ??????????????? # ?????### #?????????# | | ?????????????? ? #????????# ## #?????????## | | ?????????????#? ?????????# #####??????????## | | ??????????????## ??????????# ##???????????????## | | ???????????????##??????????# #??????????????????? | | ???????????????????????????###???????????????????? | | ?????????????????????????????????????????????????? | | ?????????????????????????????????????????????????? | | ?????????????????????????????????????????????????? | | ?????????????????????????????????????????????????? | | ?????????????????????????????????????????????????? | | ?????????????????????????????????????????????????? | | ?????????????????????????????????????????????????? | | ?????????????????????????????????????????????????? | | ?????????????????????????????????????????????????? | | ?????????????????????????????????????????????????? | | ?????????????????????????????????????????????????? | | ?????????????????????????????????????????????????? | | ?????????????????????????????????????????????????? | +----------------------------------------------------+ Best States ------------- Heat Dissipation 25 Energy Generation 10 Energy Capacity 250 Matter Stores 300 Matter Capacity 300 Sight Range 16 Terrain Scan Density 10 Armor Coverage 150 Evasion (%) 50 Recoil Reduction 2 Item Schematics ----------------- None Robot Schematics ------------------ None Fabricated ------------ Nothing Repaired ---------- Nothing Alien Tech Used ----------------- None Achievements -------------- None Challenges ------------ None Game ------ Seed RapidScrapBasin Manual? 0 Play Time 00:14:30 Cumulative 383.2 hours Start 2025.10.15 @ 10:57:37 End 2025.10.15 @ 11:09:25 Sessions 1 Manual Loads 0 Difficulty Rogue Special Mode None Game No. 502 Rogue 502 Adventurer 0 Explorer 0 Win Type - Total 11 Types 6/0/1/2/1/0/1/0/0/0 Lore% 88 Gallery% 83 Achievement% 70 Wizard Run 0 Options --------- Layout 0 ASCII 0 Keyboard 0 Movement Mouse Keybinds 0 Fullscreen 1 Font 24/Tamsyn Map View 76x50 Zoom Use 0% Tactical HUD 1 Map Filters NONE Filters NONE Steam 1 RUN: d7c08ee6-76ab-4c9b-9af4-93ac01f1932f